fUST/lending_fUST_20251010
["ID","MTS","AMOUNT","RATE_DAILY","PERIOD"]
[390400409,1760037046938,-500.0,0.00016438,2]
[390400413,1760037046951,-500.0,0.00016438,2]
[390400415,1760037046962,-500.0,0.00016438,2]
[390400417,1760037046973,-500.0,0.00016438,2]
[390400419,1760037046984,-151.0,0.00016438,2]
[390400421,1760037046996,-151.0,0.00016438,2]
[390400424,1760037047011,-151.0,0.00016438,2]
[390400426,1760037047023,-151.0,0.00016438,2]
[390400429,1760037047034,-151.0,0.00016438,2]
[390400431,1760037047046,-151.0,0.00016438,2]
[390400433,1760037047057,-151.11283737,0.00016438,2]
[390400436,1760037047070,-151.0,0.00016438,2]
[390400438,1760037047081,-500.0,0.00016438,2]
[390400440,1760037047092,-500.0,0.00016438,2]
[390400442,1760037047104,-19204.54495026,0.00016438,2]
[390400445,1760037047118,-14220.29607944,0.00016438,2]
[390400447,1760037047127,-500.0,0.00016438,2]
[390400449,1760037047138,-790.42,0.00016438,2]
[390400451,1760037047148,-500.0,0.00016438,2]
[390400453,1760037047159,-500.0,0.00016438,2]
[390400455,1760037047169,-500.0,0.00016438,2]
[390400457,1760037047180,-500.0,0.00016438,2]
[390400460,1760037047192,-500.0,0.00016438,2]
[390400462,1760037047203,-1167.71,0.00016438,2]
[390400464,1760037047214,-500.0,0.00016438,2]
[390400467,1760037047226,-269.7646579,0.00016438,2]
[390400469,1760037047236,-810.55,0.00016438,2]
[390400471,1760037047249,-500.0,0.00016438,2]
[390400473,1760037047260,-514.25946712,0.00016438,2]
[390400475,1760037047271,-500.0,0.00016438,2]
[390400478,1760037047283,-500.0,0.00016438,2]
[390400480,1760037047297,-500.0,0.00016438,2]
[390400482,1760037047309,-500.0,0.00016438,2]
[390400484,1760037047320,-500.0,0.00016438,2]
[390400486,1760037047330,-1049.54,0.00016438,2]
[390400488,1760037047341,-893.4569211,0.00016438,2]
[390400491,1760037047352,-500.0,0.00016438,2]
[390400493,1760037047362,-500.0,0.00016438,2]
[390400495,1760037047373,-151.0,0.00016438,2]
[390400497,1760037047384,-500.0,0.00016438,2]
[390400499,1760037047395,-151.0,0.00016438,2]
[390400502,1760037047409,-500.0,0.00016438,2]
[390400504,1760037047419,-500.0,0.00016438,2]
[390400506,1760037047431,-500.0,0.00016438,2]
[390400508,1760037047441,-57.8145059,0.00016438,2]
[390400541,1760037047735,-442.1854941,0.00016438,2]
[390400543,1760037047747,-10.8145059,0.00016438,2]
[390400546,1760037047761,-489.1854941,0.00016438,2]
[390400548,1760037047772,-500.0,0.00016438,2]
[390400550,1760037047783,-111.96332173,0.00016438,2]
[390400553,1760037047795,-1361.19667827,0.00016438,2]
[390400555,1760037047806,-500.0,0.00016438,2]
[390400557,1760037047816,-110.24964656,0.00016438,2]
[390400559,1760037047830,-40.75035344,0.00016438,2]
[390400562,1760037047840,-151.40055561,0.00016438,2]
[390400564,1760037047851,-151.0,0.00016438,2]
[390400566,1760037047861,-357.7570445,0.00016438,2]
[390401345,1760037059358,5000.0,0.00017,10]
[390402138,1760037067438,898.63549823,0.00017,10]
[390403830,1760037134894,323.064542,0.0002876,120]
[390403831,1760037251734,265.5,0.00028767,120]
[390403832,1760037276037,5000.0,0.00017,10]
[390403833,1760037291672,557.71500556,0.00017,10]
[390403834,1760037299398,4442.82197987,0.00017,10]
[390403836,1760037335469,1000.0,0.00027397,120]
[390403837,1760037491602,5000.0,0.0001652,14]
[390403838,1760037633273,166.0,0.00025615,120]
[390403839,1760037634555,166.0,0.00026896,120]
[390403840,1760037635915,166.0,0.00028241,120]
[390403841,1760037650329,1000.0,0.00027397,120]
[390403843,1760037705735,5000.0,0.0001652,14]
[390403844,1760037728361,5000.0,0.0001652,14]
[390403845,1760037874334,178.830551,0.0001533,2]
[390403846,1760037927454,666.0,0.0001532,2]
[390403847,1760037932592,160.0,0.00025319,120]
[390403848,1760037933858,160.0,0.00026584,120]
[390403849,1760037935201,160.0,0.00027914,120]
[390403850,1760038008132,245.65603,0.00015351,2]
[390403904,1760038231955,-662.96138094,0.00015849,2]
[390403906,1760038231967,-1228.64421206,0.00015849,2]
[390403908,1760038231976,-267.69508815,0.0001599,2]
[390403910,1760038231985,-471.97272593,0.00016009,2]
[390403912,1760038231995,-300.0,0.00016237,2]
[390403914,1760038232004,-1200.0,0.00016237,2]
[390403916,1760038232013,-12434.63987903,0.00016238,2]
[390403918,1760038232025,-27541.69309227,0.00016238,2]
[390403920,1760038232035,-1426.6681072,0.00016307,2]
[390403923,1760038232044,-441.92131369,0.00016377,2]
[390403946,1760038232227,-212.91,0.00016428,3]
[390403948,1760038232236,-177.42,0.00016428,3]
[390403950,1760038232245,-532.31,0.00016428,3]
[390403952,1760038232254,-18603.8837,0.00016428,2]
[390403954,1760038232263,-500.0,0.00016438,2]
[390403956,1760038232272,-151.0,0.00016438,2]
[390403958,1760038232282,-500.0,0.00016438,2]
[390403960,1760038232291,-151.0,0.00016438,2]
[390403962,1760038232299,-151.0,0.00016438,2]
[390403964,1760038232307,-500.0,0.00016438,2]
[390403966,1760038232315,-500.0,0.00016438,2]
[390403968,1760038232324,-510.0,0.00016438,2]
[390403970,1760038232333,-500.0,0.00016438,2]
[390403972,1760038232342,-500.0,0.00016438,2]
[390403974,1760038232351,-151.0,0.00016438,2]
[390403976,1760038232361,-6236.0464814,0.00016438,2]
[390403978,1760038232369,-151.0,0.00016438,2]
[390403980,1760038232377,-256.311674,0.00016438,2]
[390403982,1760038232386,-151.0,0.00016438,2]
[390403984,1760038232395,-500.0,0.00016438,2]
[390403986,1760038232404,-349.03222939,0.00016438,2]
[390403988,1760038232413,-500.0,0.00016438,2]
[390403990,1760038232422,-609.12886805,0.00016438,2]
[390403992,1760038232431,-151.0,0.00016438,2]
[390403994,1760038232440,-502.45,0.00016438,2]
[390403996,1760038232449,-435.335869,0.00016438,2]
[390403998,1760038232458,-435.335869,0.00016438,2]
[390404000,1760038232467,-435.335869,0.00016438,2]
[390404002,1760038232476,-435.335869,0.00016438,2]
[390404004,1760038232485,-500.0,0.00016438,2]
[390404006,1760038232494,-757.49,0.00016438,2]
[390404008,1760038232503,-151.0,0.00016438,2]
[390404010,1760038232512,-500.0,0.00016438,2]
[390404012,1760038232521,-151.0,0.00016438,2]
[390404013,1760038232530,-151.0,0.00016438,2]
[390404015,1760038232539,-151.0,0.00016438,2]
[390404017,1760038232548,-151.0,0.00016438,2]
[390404019,1760038232557,-500.0,0.00016438,2]
[390404021,1760038232566,-151.0,0.00016438,2]
[390404023,1760038232574,-151.0,0.00016438,2]
[390404025,1760038232584,-152.058439,0.00016438,2]
[390404027,1760038232597,-500.0,0.00016438,2]
[390404029,1760038232606,-500.0,0.00016438,2]
[390404031,1760038232615,-151.1184974,0.00016438,2]
[390404033,1760038232624,-500.0,0.00016438,2]
[390404035,1760038232634,-151.0,0.00016438,2]
[390404036,1760038232643,-500.0,0.00016438,2]
[390404037,1760038232654,-151.0,0.00016438,2]
[390404038,1760038232665,-151.0,0.00016438,2]
[390404039,1760038232674,-1119.06,0.00016438,2]
[390404040,1760038232684,-500.0,0.00016438,2]
[390404041,1760038232693,-151.0,0.00016438,2]
[390404042,1760038232701,-500.0,0.00016438,2]
[390404043,1760038232711,-776.78,0.00016438,2]
[390404044,1760038232720,-500.0,0.00016438,2]
[390404045,1760038232730,-500.0,0.00016438,2]
[390404046,1760038232739,-500.0,0.00016438,2]
[390404047,1760038232749,-89449.89480145,0.00016438,2]
[390404048,1760038237056,161.0,0.00025198,120]
[390404065,1760038237735,-190.0,0.00016376,2]
[390404067,1760038237744,-1781.36987575,0.00016438,2]
[390404068,1760038237753,-500.0,0.00016438,2]
[390404069,1760038237763,-500.0,0.00016438,2]
[390404070,1760038237771,-500.0,0.00016438,2]
[390404071,1760038237781,-151.0,0.00016438,2]
[390404072,1760038237789,-500.0,0.00016438,2]
[390404073,1760038237798,-500.0,0.00016438,2]
[390404074,1760038237807,-377.67062733,0.00016438,2]
[390404080,1760038238552,161.0,0.00026458,120]
[390404118,1760038239863,-628.13937267,0.00016438,2]
[390404120,1760038239872,-151.0,0.00016438,2]
[390404122,1760038239882,-500.0,0.00016438,2]
[390404124,1760038239891,-151.0,0.00016438,2]
[390404126,1760038239900,-151.0,0.00016438,2]
[390404128,1760038239909,-151.0,0.00016438,2]
[390404130,1760038239918,-151.48361571,0.00016438,2]
[390404132,1760038239928,-500.0,0.00016438,2]
[390404134,1760038239937,-151.0,0.00016438,2]
[390404136,1760038239946,-153.845198,0.00016438,2]
[390404138,1760038239955,-151.0,0.00016438,2]
[390404140,1760038239964,-500.0,0.00016438,2]
[390404142,1760038239973,-153.822419,0.00016438,2]
[390404144,1760038239983,-151.0,0.00016438,2]
[390404146,1760038239992,-500.0,0.00016438,2]
[390404148,1760038240001,-151.0,0.00016438,2]
[390404150,1760038240010,-500.0,0.00016438,2]
[390404152,1760038240019,-1342.0,0.00016438,2]
[390404154,1760038240029,-630.08,0.00016438,2]
[390404156,1760038240038,-500.0,0.00016438,2]
[390404158,1760038240047,-500.0,0.00016438,2]
[390404160,1760038240057,-659.0,0.00016438,2]
[390404162,1760038240066,-151.0,0.00016438,2]
[390404164,1760038240077,-7044.47,0.00016438,2]
[390404168,1760038240086,-715.47,0.00016438,2]
[390404171,1760038240095,-151.0,0.00016438,2]
[390404173,1760038240104,-500.0,0.00016438,2]
[390404175,1760038240114,-6616.77,0.00016438,2]
[390404177,1760038240123,-151.0,0.00016438,2]
[390404179,1760038240133,-151.0,0.00016438,2]
[390404181,1760038240142,-151.0,0.00016438,2]
[390404183,1760038240152,-151.0,0.00016438,2]
[390404185,1760038240161,-151.0,0.00016438,2]
[390404187,1760038240170,-151.0,0.00016438,2]
[390404189,1760038240180,-500.0,0.00016438,2]
[390404191,1760038240190,-500.0,0.00016438,2]
[390404193,1760038240199,-151.0,0.00016438,2]
[390404195,1760038240210,-500.0,0.00016438,2]
[390404197,1760038240219,-500.0,0.00016438,2]
[390404199,1760038240229,-497.99,0.00016438,2]
[390404201,1760038240239,-231.11861105,0.00016438,2]
[390404204,1760038240249,-500.0,0.00016438,2]
[390404206,1760038240258,-575.63,0.00016438,2]
[390404208,1760038240267,-151.58759064,0.00016438,2]
[390404209,1760038240276,-151.0,0.00016438,2]
[390404211,1760038240285,-234.38153118,0.00016438,2]
[390404213,1760038240295,-500.80507747,0.00016438,2]
[390404215,1760038240305,-1411.78,0.00016438,2]
[390404217,1760038240315,-595.72,0.00016438,2]
[390404220,1760038240327,-500.0,0.00016438,2]
[390404222,1760038240336,-500.0,0.00016438,2]
[390404224,1760038240346,-500.0,0.00016438,2]
[390404226,1760038240355,-500.0,0.00016438,2]
[390404228,1760038240365,-1698.17,0.00016438,2]
[390404230,1760038240375,-1169.61,0.00016438,2]
[390404232,1760038240384,-167.5231728,0.00016438,2]
[390404234,1760038240393,-500.0,0.00016438,2]
[390404236,1760038240402,-5528.08,0.00016438,2]
[390404238,1760038240411,-151.0,0.00016438,2]
[390404240,1760038240420,-151.0,0.00016438,2]
[390404242,1760038240429,-500.0,0.00016438,2]
[390404244,1760038240438,-151.0,0.00016438,2]
[390404246,1760038240447,-151.0,0.00016438,2]
[390404248,1760038240456,-151.0,0.00016438,2]
[390404250,1760038240465,-151.0,0.00016438,2]
[390404252,1760038240473,-500.0,0.00016438,2]
[390404254,1760038240482,-1030.95,0.00016438,2]
[390404256,1760038240491,-5233.56,0.00016438,2]
[390404258,1760038240500,-500.0,0.00016438,2]
[390404260,1760038240509,-500.0,0.00016438,2]
[390404262,1760038240518,-151.0,0.00016438,2]
[390404264,1760038240527,-157.066814,0.00016438,2]
[390404266,1760038240536,-151.0,0.00016438,2]
[390404268,1760038240546,-151.0,0.00016438,2]
[390404270,1760038240555,-1045.14,0.00016438,2]
[390404272,1760038240564,-500.0,0.00016438,2]
[390404274,1760038240576,-151.0,0.00016438,2]
[390404276,1760038240586,-500.0,0.00016438,2]
[390404278,1760038240600,-1584.53,0.00016438,2]
[390404280,1760038240610,-500.0,0.00016438,2]
[390404281,1760038240619,-151.0,0.00016438,2]
[390404283,1760038240628,-151.0,0.00016438,2]
[390404285,1760038240638,-500.0,0.00016438,2]
[390404287,1760038240647,-151.0,0.00016438,2]
[390404289,1760038240657,-585.67,0.00016438,2]
[390404292,1760038240667,-500.0,0.00016438,2]
[390404294,1760038240676,-755.73,0.00016438,2]
[390404296,1760038240686,-151.0,0.00016438,2]
[390404298,1760038240695,-151.0,0.00016438,2]
[390404300,1760038240705,-1016.87659748,0.00016438,2]
[390404306,1760038240752,161.0,0.00027781,120]
[390404827,1760038245733,-190.0,0.00016357,2]
[390404829,1760038245742,-2278.43340252,0.00016438,2]
[390404831,1760038245751,-500.0,0.00016438,2]
[390404833,1760038245760,-276.07271824,0.00016438,2]
[390404835,1760038245770,-151.0,0.00016438,2]
[390404837,1760038245779,-151.0,0.00016438,2]
[390404839,1760038245788,-500.0,0.00016438,2]
[390404841,1760038245797,-757.92,0.00016438,2]
[390404843,1760038245807,-974.29,0.00016438,2]
[390404845,1760038245816,-783.88,0.00016438,2]
[390404847,1760038245825,-848.93,0.00016438,2]
[390404849,1760038245835,-640.93,0.00016438,2]
[390404851,1760038245844,-500.0,0.00016438,2]
[390404853,1760038245853,-461.19991,0.00016438,2]
[390404855,1760038245863,-461.19991,0.00016438,2]
[390404857,1760038245871,-307.39015033,0.00016438,2]
[390404859,1760038245881,-461.19991,0.00016438,2]
[390404861,1760038245890,-461.19991,0.00016438,2]
[390404863,1760038245899,-500.0,0.00016438,2]
[390404865,1760038245908,-151.0,0.00016438,2]
[390404867,1760038245918,-156.968605,0.00016438,2]
[390404889,1760038246107,-614.74,0.00016438,2]
[390404891,1760038246117,-151.0,0.00016438,2]
[390404893,1760038246126,-151.0,0.00016438,2]
[390404895,1760038246135,-151.0,0.00016438,2]
[390404897,1760038246144,-500.0,0.00016438,2]
[390404899,1760038246154,-2145.72,0.00016438,2]
[390404901,1760038246164,-527.69,0.00016438,2]
[390404903,1760038246173,-151.0,0.00016438,2]
[390404905,1760038246183,-500.0,0.00016438,2]
[390404907,1760038246192,-500.0,0.00016438,2]
[390404909,1760038246201,-728.051572,0.00016438,2]
[390404911,1760038246211,-500.0,0.00016438,2]
[390404913,1760038246220,-728.051572,0.00016438,2]
[390404915,1760038246229,-500.0,0.00016438,2]
[390404917,1760038246239,-728.051572,0.00016438,2]
[390404919,1760038246248,-728.051572,0.00016438,2]
[390404921,1760038246257,-728.051572,0.00016438,2]
[390404923,1760038246266,-151.0,0.00016438,2]
[390404926,1760038246277,-728.051572,0.00016438,2]
[390404928,1760038246286,-151.0,0.00016438,2]
[390404929,1760038246295,-728.051572,0.00016438,2]
[390404930,1760038246304,-728.051572,0.00016438,2]
[390404931,1760038246313,-636.47,0.00016438,2]
[390404932,1760038246322,-581.19,0.00016438,2]
[390404933,1760038246332,-500.0,0.00016438,2]
[390404934,1760038246341,-236.725445,0.00016438,2]
[390404935,1760038246350,-236.725445,0.00016438,2]
[390404936,1760038246359,-236.725445,0.00016438,2]
[390404937,1760038246368,-236.725445,0.00016438,2]
[390404938,1760038246377,-236.725445,0.00016438,2]
[390404939,1760038246386,-236.725445,0.00016438,2]
[390404940,1760038246395,-236.725445,0.00016438,2]
[390404941,1760038246404,-236.725445,0.00016438,2]
[390404942,1760038246414,-689.29,0.00016438,2]
[390404943,1760038246423,-1942.77,0.00016438,2]
[390404944,1760038246433,-500.0,0.00016438,2]
[390404945,1760038246443,-500.0,0.00016438,2]
[390404946,1760038246453,-1754.24,0.00016438,2]
[390404947,1760038246463,-500.0,0.00016438,2]
[390404948,1760038246472,-151.0,0.00016438,2]
[390404949,1760038246481,-534.17,0.00016438,2]
[390404951,1760038246490,-151.0,0.00016438,2]
[390404953,1760038246499,-500.0,0.00016438,2]
[390404955,1760038246508,-151.0,0.00016438,2]
[390404957,1760038246517,-151.16185322,0.00016438,2]
[390404959,1760038246526,-1864.7,0.00016438,2]
[390404961,1760038246535,-714.68,0.00016438,2]
[390404963,1760038246544,-727.99,0.00016438,2]
[390404965,1760038246553,-500.0,0.00016438,2]
[390404967,1760038246562,-717.1,0.00016438,2]
[390404968,1760038246576,-151.58468643,0.00016438,2]
[390404970,1760038246585,-500.0,0.00016438,2]
[390404972,1760038246597,-500.0,0.00016438,2]
[390404974,1760038246606,-500.0,0.00016438,2]
[390404976,1760038246615,-500.0,0.00016438,2]
[390404978,1760038246624,-500.0,0.00016438,2]
[390404980,1760038246633,-500.0,0.00016438,2]
[390404982,1760038246643,-212.508224,0.00016438,2]
[390404984,1760038246651,-212.508224,0.00016438,2]
[390404986,1760038246660,-151.0,0.00016438,2]
[390404988,1760038246670,-212.508224,0.00016438,2]
[390404990,1760038246678,-151.0,0.00016438,2]
[390404992,1760038246687,-212.508224,0.00016438,2]
[390404994,1760038246697,-500.0,0.00016438,2]
[390404996,1760038246705,-151.0,0.00016438,2]
[390404998,1760038246715,-212.508224,0.00016438,2]
[390405000,1760038246724,-151.0,0.00016438,2]
[390405001,1760038246733,-212.508224,0.00016438,2]
[390405003,1760038246742,-212.508224,0.00016438,2]
[390405005,1760038246751,-1487.43,0.00016438,2]
[390405007,1760038246760,-212.508224,0.00016438,2]
[390405009,1760038246769,-151.0,0.00016438,2]
[390405011,1760038246778,-151.0,0.00016438,2]
[390405013,1760038246788,-500.0,0.00016438,2]
[390405015,1760038246797,-500.0,0.00016438,2]
[390405017,1760038246806,-500.0,0.00016438,2]
[390405019,1760038246815,-1735.23,0.00016438,2]
[390405021,1760038246826,-500.0,0.00016438,2]
[390405023,1760038246835,-151.0,0.00016438,2]
[390405025,1760038246843,-151.0,0.00016438,2]
[390405027,1760038246853,-151.0,0.00016438,2]
[390405029,1760038246862,-151.0,0.00016438,2]
[390405031,1760038246871,-151.0,0.00016438,2]
[390405033,1760038246879,-151.0,0.00016438,2]
[390405035,1760038246889,-192.622043,0.00016438,2]
[390405036,1760038246898,-2447.69,0.00016438,2]
[390405038,1760038246907,-151.885995,0.00016438,2]
[390405040,1760038246915,-881.24,0.00016438,2]
[390405042,1760038246925,-862.42,0.00016438,2]
[390405044,1760038246933,-2659.7,0.00016438,2]
[390405046,1760038246942,-699.43,0.00016438,2]
[390405048,1760038246951,-500.0,0.00016438,2]
[390405050,1760038246960,-728.13,0.00016438,2]
[390405052,1760038246970,-500.0,0.00016438,2]
[390405054,1760038246978,-768.96,0.00016438,2]
[390405056,1760038246989,-189.374255,0.00016438,2]
[390405058,1760038246998,-189.374255,0.00016438,2]
[390405060,1760038247007,-189.374255,0.00016438,2]
[390405062,1760038247016,-189.374255,0.00016438,2]
[390405064,1760038247026,-189.374255,0.00016438,2]
[390405066,1760038247036,-189.374255,0.00016438,2]
[390405068,1760038247044,-189.374255,0.00016438,2]
[390405070,1760038247053,-189.374255,0.00016438,2]
[390405072,1760038247062,-500.0,0.00016438,2]
[390405074,1760038247071,-2039.54,0.00016438,2]
[390405076,1760038247081,-4441.11,0.00016438,2]
[390405078,1760038247091,-770.54,0.00016438,2]
[390405080,1760038247100,-151.0,0.00016438,2]
[390405082,1760038247110,-151.0,0.00016438,2]
[390405084,1760038247118,-151.0,0.00016438,2]
[390405086,1760038247128,-151.0,0.00016438,2]
[390405089,1760038247146,-151.0,0.00016438,2]
[390405091,1760038247158,-151.0,0.00016438,2]
[390405093,1760038247168,-151.0,0.00016438,2]
[390405095,1760038247177,-151.0,0.00016438,2]
[390405097,1760038247187,-500.0,0.00016438,2]
[390405099,1760038247196,-4770.21,0.00016438,2]
[390405101,1760038247206,-151.0,0.00016438,2]
[390405103,1760038247216,-151.0,0.00016438,2]
[390405105,1760038247225,-151.0,0.00016438,2]
[390405107,1760038247235,-202.815947,0.00016438,2]
[390405109,1760038247244,-797.32,0.00016438,2]
[390405111,1760038247254,-6341.07,0.00016438,2]
[390405113,1760038247264,-500.0,0.00016438,2]
[390405115,1760038247274,-151.0,0.00016438,2]
[390405117,1760038247283,-151.0,0.00016438,2]
[390405119,1760038247293,-151.0,0.00016438,2]
[390405121,1760038247303,-1000.0,0.00016438,2]
[390405123,1760038247313,-190.0,0.00016463,2]
[390405126,1760038247324,-162.8117122,0.000165,2]
[390405128,1760038247334,-489.0,0.00016551,2]
[390405130,1760038247343,-151.0,0.000166,2]
[390405132,1760038247353,-297.7747917,0.000166,2]
[390405134,1760038247363,-153.0,0.000166,2]
[390405136,1760038247372,-542.76863482,0.00016609,2]
[390405138,1760038247383,-270.39619479,0.00016611,2]
[390405140,1760038247392,-999.83634608,0.00016612,2]
[390405142,1760038247403,-10000.0,0.00016612,2]
[390405144,1760038247414,-489.0,0.00016632,2]
[390405145,1760038247423,-151.0,0.00016632,2]
[390405147,1760038247433,-151.0,0.00016632,2]
[390405150,1760038247442,-151.0,0.00016632,2]
[390405152,1760038247452,-151.0,0.00016632,2]
[390405154,1760038247461,-461.19991,0.00016632,2]
[390405156,1760038247471,-461.19991,0.00016632,2]
[390405158,1760038247480,-461.19991,0.00016632,2]
[390405160,1760038247489,-461.19991,0.00016632,2]
[390405162,1760038247498,-190.0,0.00016685,2]
[390405164,1760038247507,-896.17312165,0.00016688,2]
[390405166,1760038247517,-151.0,0.000167,2]
[390405168,1760038247526,-500.0,0.00016712,2]
[390405170,1760038247536,-151.0,0.00016712,2]
[390405172,1760038247545,-500.0,0.00016712,2]
[390405174,1760038247554,-151.0,0.00016712,2]
[390405176,1760038247564,-151.0,0.00016712,2]
[390405177,1760038247573,-500.0,0.00016712,2]
[390405179,1760038247582,-151.0,0.00016712,2]
[390405181,1760038247592,-500.0,0.00016712,2]
[390405183,1760038247603,-151.0,0.00016712,2]
[390405184,1760038247613,-1342.0,0.00016712,2]
[390405186,1760038247622,-500.0,0.00016712,2]
[390405188,1760038247631,-151.0,0.00016712,2]
[390405190,1760038247641,-151.36530386,0.00016712,2]
[390405192,1760038247650,-526.82026723,0.00016712,2]
[390405194,1760038247660,-151.0,0.00016712,2]
[390405196,1760038247669,-151.0,0.00016712,2]
[390405198,1760038247679,-500.0,0.00016712,2]
[390405200,1760038247689,-151.0,0.00016712,2]
[390405202,1760038247698,-500.0,0.00016712,2]
[390405204,1760038247707,-151.0,0.00016712,2]
[390405206,1760038247716,-151.0,0.00016712,2]
[390405208,1760038247725,-151.0,0.00016712,2]
[390405210,1760038247735,-151.0,0.00016712,2]
[390405212,1760038247744,-151.0,0.00016712,2]
[390405214,1760038247753,-224.18754419,0.00016712,2]
[390405216,1760038247763,-500.0,0.00016712,2]
[390405218,1760038247772,-500.0,0.00016712,2]
[390405220,1760038247781,-500.0,0.00016712,2]
[390405222,1760038247791,-500.0,0.00016712,2]
[390405224,1760038247800,-500.0,0.00016712,2]
[390405226,1760038247809,-500.0,0.00016712,2]
[390405228,1760038247818,-500.0,0.00016712,2]
[390405230,1760038247827,-154.59409,0.00016712,2]
[390405232,1760038247836,-500.0,0.00016712,2]
[390405234,1760038247845,-151.0,0.00016712,2]
[390405235,1760038247854,-151.0,0.00016712,2]
[390405237,1760038247864,-151.0,0.00016712,2]
[390405239,1760038247873,-151.0,0.00016712,2]
[390405241,1760038247882,-500.0,0.00016712,2]
[390405243,1760038247891,-500.0,0.00016712,2]
[390405245,1760038247900,-500.0,0.00016712,2]
[390405247,1760038247909,-500.0,0.00016712,2]
[390405249,1760038247918,-151.0,0.00016712,2]
[390405251,1760038247927,-151.0,0.00016712,2]
[390405253,1760038247937,-151.0,0.00016712,2]
[390405255,1760038247946,-151.0,0.00016712,2]
[390405257,1760038247955,-151.0,0.00016712,2]
[390405259,1760038247964,-151.0,0.00016712,2]
[390405261,1760038247974,-301.99999997,0.00016712,2]
[390405263,1760038247983,-500.0,0.00016712,2]
[390405265,1760038247993,-500.0,0.00016712,2]
[390405267,1760038248002,-502.45,0.00016712,2]
[390405269,1760038248011,-435.335869,0.00016712,2]
[390405271,1760038248021,-435.335869,0.00016712,2]
[390405273,1760038248030,-435.335869,0.00016712,2]
[390405275,1760038248040,-435.335869,0.00016712,2]
[390405277,1760038248049,-435.335869,0.00016712,2]
[390405279,1760038248058,-435.335869,0.00016712,2]
[390405281,1760038248068,-500.0,0.00016712,2]
[390405283,1760038248077,-757.49,0.00016712,2]
[390405285,1760038248086,-151.0,0.00016712,2]
[390405287,1760038248096,-151.0,0.00016712,2]
[390405289,1760038248105,-151.0,0.00016712,2]
[390405291,1760038248114,-500.0,0.00016712,2]
[390405293,1760038248123,-151.0,0.00016712,2]
[390405295,1760038248132,-151.0,0.00016712,2]
[390405297,1760038248142,-151.0,0.00016712,2]
[390405299,1760038248150,-151.0,0.00016712,2]
[390405301,1760038248159,-151.0,0.00016712,2]
[390405302,1760038248169,-151.0,0.00016712,2]
[390405304,1760038248178,-151.0,0.00016712,2]
[390405306,1760038248187,-151.0,0.00016712,2]
[390405308,1760038248196,-151.0,0.00016712,2]
[390405310,1760038248205,-151.0,0.00016712,2]
[390405312,1760038248215,-151.0,0.00016712,2]
[390405314,1760038248225,-244.944,0.00016712,2]
[390405316,1760038248234,-500.0,0.00016712,2]
[390405318,1760038248243,-151.0,0.00016712,2]
[390405320,1760038248252,-151.0,0.00016712,2]
[390405322,1760038248260,-217.270765,0.00016712,2]
[390405324,1760038248270,-500.0,0.00016712,2]